[Event "Titled Tuesday Blitz March 01 Early 2022"]
[White "Rengifo Blancas, Renzo Jhonathan"]
[Black "Matinian, Nikita"]
[WhiteFideId "3807185"]
[BlackFideId "24129100"]
[WhiteElo "2058"]
[BlackElo "2422"]
[Result "0-1"]
[Round "01"]
[TimeControl "180+1"]
[Date "2022.03.01"]
[WhiteClock "0:00:01"]
[BlackClock "0:01:12"]

1. d3 {[%clk 0:02:55]}  Nf6 {[%clk 0:02:56]} 2. Nf3 {[%clk 0:02:55]}  g6 {[%clk 0:02:55]} 3. g3 {[%clk 0:02:48]}  Bg7 {[%clk 0:02:54]} 4. Bg2 {[%clk 0:02:49]}  O-O {[%clk 0:02:55]} 5. O-O {[%clk 0:02:49]}  d5 {[%clk 0:02:54]} 6. Nbd2 {[%clk 0:02:47]}  Nc6 {[%clk 0:02:54]} 7. e4 {[%clk 0:02:47]}  e5 {[%clk 0:02:54]} 8. c3 {[%clk 0:02:47]}  a5 {[%clk 0:02:53]} 9. a4 {[%clk 0:02:46]}  b6 {[%clk 0:02:51]} 10. Qc2 {[%clk 0:02:46]}  Ba6 {[%clk 0:02:50]} 11. Re1 {[%clk 0:02:45]}  dxe4 {[%clk 0:02:48]} 12. dxe4 {[%clk 0:02:42]}  Qd3 {[%clk 0:02:48]} 13. Qb3 {[%clk 0:02:23]}  Qd7 {[%clk 0:02:45]} 14. Nc4 {[%clk 0:02:12]}  Qe6 {[%clk 0:02:40]} 15. Bf1 {[%clk 0:02:09]}  Nd7 {[%clk 0:02:38]} 16. Ng5 {[%clk 0:02:00]}  Qe7 {[%clk 0:02:38]} 17. Nf3 {[%clk 0:01:36]}  Nc5 {[%clk 0:02:38]} 18. Qc2 {[%clk 0:01:35]}  f5 {[%clk 0:02:30]} 19. exf5 {[%clk 0:01:29]}  Rxf5 {[%clk 0:02:29]} 20. Nh4 {[%clk 0:01:24]}  Rf7 {[%clk 0:02:24]} 21. Be3 {[%clk 0:00:58]}  e4 {[%clk 0:02:12]} 22. Bxc5 {[%clk 0:00:41]}  Qxc5 {[%clk 0:02:12]} 23. Rxe4 {[%clk 0:00:42]}  Raf8 {[%clk 0:02:07]} 24. Ne3 {[%clk 0:00:34]}  Nb4 {[%clk 0:01:53]} 25. Qb3 {[%clk 0:00:30]}  Nd3 {[%clk 0:01:48]} 26. Bxd3 {[%clk 0:00:17]}  Bxd3 {[%clk 0:01:49]} 27. Rf4 {[%clk 0:00:17]}  Bh6 {[%clk 0:01:49]} 28. Rxf7 {[%clk 0:00:16]}  Rxf7 {[%clk 0:01:50]} 29. Nhg2 {[%clk 0:00:14]}  Kg7 {[%clk 0:01:37]} 30. Rd1 {[%clk 0:00:14]}  Be4 {[%clk 0:01:30]} 31. Rd4 {[%clk 0:00:07]}  Bf3 {[%clk 0:01:25]} 32. Qe6 {[%clk 0:00:04]}  Qe7 {[%clk 0:01:19]} 33. Qxe7 {[%clk 0:00:03]}  Rxe7 {[%clk 0:01:20]} 34. Ne1 {[%clk 0:00:04]}  Bc6 {[%clk 0:01:19]} 35. N1c2 {[%clk 0:00:03]}  Bg5 {[%clk 0:01:16]} 36. Kf1 {[%clk 0:00:02]}  Bf6 {[%clk 0:01:15]} 37. Rd2 {[%clk 0:00:02]}  Bxa4 {[%clk 0:01:15]} 38. Kg2 {[%clk 0:00:02]}  Bc6+ {[%clk 0:01:14]} 39. Kg1 {[%clk 0:00:01]}  Rd7 {[%clk 0:01:12]} 0-1


[Site "https://www.chess.com"]

[Event "Titled Tuesday Blitz March 01 Early 2022"]
[White "Rozhkov, Viacheslav"]
[Black "Kamsky, Gata"]
[WhiteFideId "4181484"]
[BlackFideId "2000024"]
[WhiteElo "2324"]
[BlackElo "2645"]
[Result "1/2-1/2"]
[Round "01"]
[TimeControl "180+1"]
[Date "2022.03.01"]
[WhiteClock "0:00:13"]
[BlackClock "0:00:24"]

1. e4 {[%clk 0:03:00]}  c5 {[%clk 0:02:57]} 2. Nf3 {[%clk 0:02:59]}  e6 {[%clk 0:02:56]} 3. d4 {[%clk 0:02:59]}  cxd4 {[%clk 0:02:56]} 4. Nxd4 {[%clk 0:03:00]}  a6 {[%clk 0:02:56]} 5. Nc3 {[%clk 0:03:00]}  b5 {[%clk 0:02:55]} 6. g3 {[%clk 0:02:50]}  Bb7 {[%clk 0:02:54]} 7. Bg2 {[%clk 0:02:51]}  Nf6 {[%clk 0:02:51]} 8. O-O {[%clk 0:02:47]}  b4 {[%clk 0:02:50]} 9. Nd5 {[%clk 0:02:41]}  Nc6 {[%clk 0:01:25]} 10. Re1 {[%clk 0:02:10]}  Nxd4 {[%clk 0:01:15]} 11. Qxd4 {[%clk 0:02:09]}  Rc8 {[%clk 0:00:46]} 12. Bg5 {[%clk 0:01:24]}  Bxd5 {[%clk 0:00:43]} 13. exd5 {[%clk 0:01:23]}  Bc5 {[%clk 0:00:44]} 14. Qh4 {[%clk 0:01:02]}  O-O {[%clk 0:00:38]} 15. Rad1 {[%clk 0:00:49]}  h6 {[%clk 0:00:36]} 16. Bxf6 {[%clk 0:00:42]}  Qxf6 {[%clk 0:00:35]} 17. Qxf6 {[%clk 0:00:42]}  gxf6 {[%clk 0:00:34]} 18. dxe6 {[%clk 0:00:42]}  dxe6 {[%clk 0:00:34]} 19. Rd7 {[%clk 0:00:16]}  a5 {[%clk 0:00:33]} 20. Red1 {[%clk 0:00:16]}  f5 {[%clk 0:00:33]} 21. h4 {[%clk 0:00:15]}  Kg7 {[%clk 0:00:32]} 22. Bf1 {[%clk 0:00:14]}  Kf6 {[%clk 0:00:31]} 23. b3 {[%clk 0:00:15]}  Be7 {[%clk 0:00:29]} 24. Bc4 {[%clk 0:00:15]}  Rfd8 {[%clk 0:00:28]} 25. Kg2 {[%clk 0:00:16]}  Rxd7 {[%clk 0:00:28]} 26. Rxd7 {[%clk 0:00:16]}  Rc5 {[%clk 0:00:27]} 27. Kf3 {[%clk 0:00:15]}  Re5 {[%clk 0:00:27]} 28. Ra7 {[%clk 0:00:14]}  Rc5 {[%clk 0:00:24]} 29. Ke2 {[%clk 0:00:13]} 1/2-1/2


[Site "https://www.chess.com"]

[Event "Titled Tuesday Blitz March 01 Early 2022"]
[White "Sahin, Handenur"]
[Black "Di Nicolantonio, Lucas"]
[WhiteFideId "6334865"]
[BlackFideId "680460"]
[WhiteElo "2173"]
[BlackElo "2381"]
[Result "0-1"]
[Round "01"]
[TimeControl "180+1"]
[Date "2022.03.01"]
[WhiteClock "0:00:04"]
[BlackClock "0:00:09"]

1. e4 {[%clk 0:03:00]}  e6 {[%clk 0:02:54]} 2. d4 {[%clk 0:02:52]}  d5 {[%clk 0:02:53]} 3. Nd2 {[%clk 0:02:50]}  c5 {[%clk 0:02:50]} 4. c3 {[%clk 0:02:48]}  cxd4 {[%clk 0:02:49]} 5. cxd4 {[%clk 0:02:49]}  dxe4 {[%clk 0:02:47]} 6. Nxe4 {[%clk 0:02:49]}  Nf6 {[%clk 0:02:45]} 7. Nxf6+ {[%clk 0:02:34]}  Qxf6 {[%clk 0:02:45]} 8. Nf3 {[%clk 0:02:34]}  Bb4+ {[%clk 0:02:32]} 9. Bd2 {[%clk 0:02:32]}  Bxd2+ {[%clk 0:02:33]} 10. Qxd2 {[%clk 0:02:32]}  O-O {[%clk 0:02:33]} 11. Bd3 {[%clk 0:02:30]}  Nc6 {[%clk 0:02:32]} 12. O-O {[%clk 0:02:28]}  Rd8 {[%clk 0:02:32]} 13. Rad1 {[%clk 0:02:19]}  b6 {[%clk 0:02:18]} 14. Bxh7+ {[%clk 0:01:56]}  Kxh7 {[%clk 0:02:03]} 15. Qc2+ {[%clk 0:01:57]}  Qg6 {[%clk 0:01:20]} 16. Qxc6 {[%clk 0:01:54]}  Ba6 {[%clk 0:01:20]} 17. Ne5 {[%clk 0:01:42]}  Qf5 {[%clk 0:01:08]} 18. Rfe1 {[%clk 0:01:37]}  f6 {[%clk 0:00:50]} 19. Nf3 {[%clk 0:01:26]}  e5 {[%clk 0:00:26]} 20. d5 {[%clk 0:01:13]}  Rac8 {[%clk 0:00:17]} 21. Qa4 {[%clk 0:01:12]}  Bc4 {[%clk 0:00:18]} 22. d6 {[%clk 0:01:06]}  a5 {[%clk 0:00:15]} 23. b3 {[%clk 0:01:00]}  Be6 {[%clk 0:00:14]} 24. Qh4+ {[%clk 0:00:30]}  Kg8 {[%clk 0:00:14]} 25. h3 {[%clk 0:00:27]}  Rc6 {[%clk 0:00:14]} 26. Qa4 {[%clk 0:00:20]}  Rcxd6 {[%clk 0:00:12]} 27. Rxd6 {[%clk 0:00:21]}  Rxd6 {[%clk 0:00:13]} 28. Qe8+ {[%clk 0:00:21]}  Kh7 {[%clk 0:00:13]} 29. Nh4 {[%clk 0:00:20]}  Qg5 {[%clk 0:00:10]} 30. Nf3 {[%clk 0:00:19]}  Qf4 {[%clk 0:00:09]} 31. Qh5+ {[%clk 0:00:18]}  Kg8 {[%clk 0:00:09]} 32. Qe8+ {[%clk 0:00:18]}  Kh7 {[%clk 0:00:09]} 33. Qh5+ {[%clk 0:00:18]}  Qh6 {[%clk 0:00:10]} 34. Qe8 {[%clk 0:00:13]}  Bd5 {[%clk 0:00:09]} 35. Nh2 {[%clk 0:00:09]}  Qg6 {[%clk 0:00:08]} 36. Qxg6+ {[%clk 0:00:07]}  Kxg6 {[%clk 0:00:09]} 37. f3 {[%clk 0:00:06]}  Rc6 {[%clk 0:00:09]} 38. Re2 {[%clk 0:00:06]}  Rc1+ {[%clk 0:00:09]} 39. Kf2 {[%clk 0:00:07]}  b5 {[%clk 0:00:08]} 40. Nf1 {[%clk 0:00:07]}  a4 {[%clk 0:00:08]} 41. bxa4 {[%clk 0:00:06]}  bxa4 {[%clk 0:00:08]} 42. Ne3 {[%clk 0:00:06]}  Bf7 {[%clk 0:00:09]} 43. a3 {[%clk 0:00:02]}  Ra1 {[%clk 0:00:09]} 44. Rd2 {[%clk 0:00:02]}  Rxa3 {[%clk 0:00:09]} 45. Rd7 {[%clk 0:00:02]}  Ra2+ {[%clk 0:00:09]} 46. Kg3 {[%clk 0:00:02]}  a3 {[%clk 0:00:10]} 47. Ng4 {[%clk 0:00:02]}  Rb2 {[%clk 0:00:09]} 48. h4 {[%clk 0:00:03]}  a2 {[%clk 0:00:08]} 49. h5+ {[%clk 0:00:03]}  Kxh5 {[%clk 0:00:09]} 50. Rxf7 {[%clk 0:00:03]}  a1=Q {[%clk 0:00:09]} 51. Rxg7 {[%clk 0:00:04]}  Qe1+ {[%clk 0:00:09]} 52. Kh3 {[%clk 0:00:04]}  Qh4# {[%clk 0:00:09]} 0-1


[Site "https://www.chess.com"]

[Event "Titled Tuesday Blitz March 01 Early 2022"]
[White "Samunenkov, Ihor"]
[Black "Niyazgulova, Marina"]
[WhiteFideId "14187086"]
[BlackFideId "24142573"]
[WhiteElo "2406"]
[BlackElo "2075"]
[Result "1-0"]
[Round "01"]
[TimeControl "180+1"]
[Date "2022.03.01"]
[WhiteClock "0:00:12"]
[BlackClock "0:00:31"]

1. e4 {[%clk 0:03:00]}  d5 {[%clk 0:02:56]} 2. exd5 {[%clk 0:03:00]}  Qxd5 {[%clk 0:02:54]} 3. Nc3 {[%clk 0:03:00]}  Qa5 {[%clk 0:02:52]} 4. d4 {[%clk 0:02:59]}  c6 {[%clk 0:02:52]} 5. Bc4 {[%clk 0:02:48]}  Nf6 {[%clk 0:02:50]} 6. Bd2 {[%clk 0:02:44]}  Bf5 {[%clk 0:02:47]} 7. Nd5 {[%clk 0:02:39]}  Qd8 {[%clk 0:02:45]} 8. Nxf6+ {[%clk 0:02:39]}  gxf6 {[%clk 0:02:43]} 9. Ne2 {[%clk 0:02:39]}  Nd7 {[%clk 0:02:34]} 10. Ng3 {[%clk 0:02:01]}  Bg6 {[%clk 0:02:34]} 11. c3 {[%clk 0:02:01]}  e6 {[%clk 0:02:31]} 12. Qe2 {[%clk 0:01:58]}  Bd6 {[%clk 0:02:26]} 13. h4 {[%clk 0:01:48]}  Bxg3 {[%clk 0:02:04]} 14. fxg3 {[%clk 0:01:48]}  h5 {[%clk 0:02:04]} 15. O-O {[%clk 0:01:42]}  Qe7 {[%clk 0:02:00]} 16. a4 {[%clk 0:01:27]}  a5 {[%clk 0:01:38]} 17. Bf4 {[%clk 0:01:19]}  Nb6 {[%clk 0:01:37]} 18. Bb3 {[%clk 0:01:03]}  Nd5 {[%clk 0:01:32]} 19. Bd2 {[%clk 0:00:45]}  Bf5 {[%clk 0:01:08]} 20. Bxd5 {[%clk 0:00:28]}  cxd5 {[%clk 0:01:06]} 21. Rxf5 {[%clk 0:00:29]}  exf5 {[%clk 0:01:06]} 22. Qb5+ {[%clk 0:00:29]}  Qd7 {[%clk 0:01:04]} 23. Re1+ {[%clk 0:00:28]}  Kd8 {[%clk 0:01:03]} 24. Qb6+ {[%clk 0:00:28]}  Kc8 {[%clk 0:00:58]} 25. Qxf6 {[%clk 0:00:28]}  Rg8 {[%clk 0:00:53]} 26. Re7 {[%clk 0:00:26]}  Qd8 {[%clk 0:00:51]} 27. Bf4 {[%clk 0:00:20]}  Rg6 {[%clk 0:00:36]} 28. Qxf7 {[%clk 0:00:16]}  Rb6 {[%clk 0:00:31]} 29. Rc7+ {[%clk 0:00:16]}  Kb8 {[%clk 0:00:31]} 30. Rxb7+ {[%clk 0:00:11]}  Kc8 {[%clk 0:00:30]} 31. Rc7+ {[%clk 0:00:10]}  Kb8 {[%clk 0:00:31]} 32. Rd7+ {[%clk 0:00:09]}  Kc8 {[%clk 0:00:31]} 33. Rxd8+ {[%clk 0:00:10]}  Kxd8 {[%clk 0:00:31]} 34. Qf8+ {[%clk 0:00:11]}  Kd7 {[%clk 0:00:31]} 35. Qxa8 {[%clk 0:00:12]}  Rxb2 {[%clk 0:00:31]} 36. Qxd5+ {[%clk 0:00:12]} 1-0


[Site "https://www.chess.com"]

[Event "Titled Tuesday Blitz March 01 Early 2022"]
[White "Sargsyan, Anna M."]
[Black "Yushko, Olga"]
[WhiteFideId "13308130"]
[BlackFideId "14114500"]
[WhiteElo "2271"]
[BlackElo "2028"]
[Result "1-0"]
[Round "01"]
[TimeControl "180+1"]
[Date "2022.03.01"]
[WhiteClock "0:00:40"]
[BlackClock "0:00:22"]

1. d4 {[%clk 0:03:00]}  e6 {[%clk 0:02:59]} 2. c4 {[%clk 0:03:00]}  f5 {[%clk 0:03:00]} 3. Nc3 {[%clk 0:02:59]}  Nf6 {[%clk 0:03:00]} 4. Bg5 {[%clk 0:02:58]}  Be7 {[%clk 0:03:00]} 5. Qc2 {[%clk 0:02:58]}  d6 {[%clk 0:02:59]} 6. O-O-O {[%clk 0:02:57]}  O-O {[%clk 0:02:59]} 7. Bxf6 {[%clk 0:02:54]}  Bxf6 {[%clk 0:02:59]} 8. e4 {[%clk 0:02:55]}  e5 {[%clk 0:02:56]} 9. Nf3 {[%clk 0:02:49]}  Qe8 {[%clk 0:02:48]} 10. Nd5 {[%clk 0:02:40]}  Bd8 {[%clk 0:02:46]} 11. dxe5 {[%clk 0:02:39]}  dxe5 {[%clk 0:02:42]} 12. exf5 {[%clk 0:02:35]}  Bxf5 {[%clk 0:02:42]} 13. Bd3 {[%clk 0:02:35]}  Qh5 {[%clk 0:02:32]} 14. Bxf5 {[%clk 0:01:57]}  Rxf5 {[%clk 0:02:33]} 15. Nb6 {[%clk 0:01:42]}  Nc6 {[%clk 0:02:27]} 16. Nxa8 {[%clk 0:01:41]}  Bf6 {[%clk 0:02:14]} 17. Nxc7 {[%clk 0:01:34]}  Rf4 {[%clk 0:02:13]} 18. Nd5 {[%clk 0:01:33]}  Rg4 {[%clk 0:01:51]} 19. Nxf6+ {[%clk 0:01:32]}  gxf6 {[%clk 0:01:49]} 20. Kb1 {[%clk 0:01:19]}  Rxg2 {[%clk 0:01:45]} 21. Qe4 {[%clk 0:01:15]}  Rxf2 {[%clk 0:01:29]} 22. Rhg1+ {[%clk 0:01:12]}  Kf8 {[%clk 0:01:26]} 23. Qd5 {[%clk 0:00:43]}  Qf5+ {[%clk 0:01:03]} 24. Ka1 {[%clk 0:00:42]}  Ne7 {[%clk 0:00:27]} 25. Qd8+ {[%clk 0:00:41]}  Kf7 {[%clk 0:00:27]} 26. Rd7 {[%clk 0:00:42]}  Qe6 {[%clk 0:00:22]} 27. Qg8# {[%clk 0:00:40]} 1-0


[Site "https://www.chess.com"]

[Event "Titled Tuesday Blitz March 01 Early 2022"]
[White "Seemann, Jakub"]
[Black "Muzzi, Eduardo"]
[WhiteFideId "21874697"]
[BlackFideId "3001253"]
[WhiteElo "2003"]
[BlackElo "1932"]
[Result "1-0"]
[Round "01"]
[TimeControl "180+1"]
[Date "2022.03.01"]
[WhiteClock "0:01:10"]
[BlackClock "0:00:02"]

1. b3 {[%clk 0:03:00]}  e5 {[%clk 0:02:52]} 2. Bb2 {[%clk 0:02:59]}  Bd6 {[%clk 0:02:46]} 3. e4 {[%clk 0:02:57]}  c6 {[%clk 0:02:44]} 4. Nf3 {[%clk 0:02:57]}  Qe7 {[%clk 0:02:42]} 5. Be2 {[%clk 0:02:56]}  Nf6 {[%clk 0:02:41]} 6. Nc3 {[%clk 0:02:57]}  Bc7 {[%clk 0:02:40]} 7. O-O {[%clk 0:02:54]}  O-O {[%clk 0:02:39]} 8. d4 {[%clk 0:02:54]}  exd4 {[%clk 0:02:29]} 9. Nxd4 {[%clk 0:02:35]}  d5 {[%clk 0:02:22]} 10. exd5 {[%clk 0:02:33]}  cxd5 {[%clk 0:02:10]} 11. Bf3 {[%clk 0:02:31]}  Be6 {[%clk 0:02:08]} 12. Re1 {[%clk 0:02:30]}  Qd6 {[%clk 0:02:01]} 13. g3 {[%clk 0:02:28]}  a6 {[%clk 0:01:57]} 14. a4 {[%clk 0:02:26]}  Nc6 {[%clk 0:01:56]} 15. Ba3 {[%clk 0:02:24]}  Nb4 {[%clk 0:01:41]} 16. Ndb5 {[%clk 0:02:23]}  axb5 {[%clk 0:01:32]} 17. Nxb5 {[%clk 0:02:21]}  Qd7 {[%clk 0:00:46]} 18. Bxb4 {[%clk 0:02:18]}  Rfc8 {[%clk 0:00:33]} 19. Nxc7 {[%clk 0:02:17]}  Qxc7 {[%clk 0:00:32]} 20. Rc1 {[%clk 0:02:07]}  Qd7 {[%clk 0:00:15]} 21. Ba3 {[%clk 0:02:02]}  Bg4 {[%clk 0:00:14]} 22. Bb2 {[%clk 0:01:57]}  Bxf3 {[%clk 0:00:11]} 23. Qxf3 {[%clk 0:01:58]}  Ne4 {[%clk 0:00:10]} 24. Bd4 {[%clk 0:01:50]}  f6 {[%clk 0:00:09]} 25. c4 {[%clk 0:01:49]}  Ng5 {[%clk 0:00:08]} 26. Qe3 {[%clk 0:01:40]}  dxc4 {[%clk 0:00:08]} 27. h4 {[%clk 0:01:40]}  Qxd4 {[%clk 0:00:07]} 28. hxg5 {[%clk 0:01:40]}  Qxe3 {[%clk 0:00:05]} 29. Rxe3 {[%clk 0:01:41]}  cxb3 {[%clk 0:00:05]} 30. Rxc8+ {[%clk 0:01:42]}  Rxc8 {[%clk 0:00:05]} 31. Rxb3 {[%clk 0:01:43]}  fxg5 {[%clk 0:00:03]} 32. Rxb7 {[%clk 0:01:42]}  Ra8 {[%clk 0:00:03]} 33. Rb4 {[%clk 0:01:41]}  Kf7 {[%clk 0:00:02]} 34. Kg2 {[%clk 0:01:42]}  Kg6 {[%clk 0:00:02]} 35. Kf3 {[%clk 0:01:43]}  h5 {[%clk 0:00:03]} 36. Ke4 {[%clk 0:01:42]}  Re8+ {[%clk 0:00:02]} 37. Kd5 {[%clk 0:01:41]}  Rd8+ {[%clk 0:00:02]} 38. Kc6 {[%clk 0:01:39]}  Rc8+ {[%clk 0:00:02]} 39. Kb7 {[%clk 0:01:39]}  Rf8 {[%clk 0:00:02]} 40. Rb2 {[%clk 0:01:35]}  Rf7+ {[%clk 0:00:02]} 41. Kb6 {[%clk 0:01:35]}  Rf6+ {[%clk 0:00:02]} 42. Kb5 {[%clk 0:01:31]}  Rf5+ {[%clk 0:00:02]} 43. Kb4 {[%clk 0:01:32]}  h4 {[%clk 0:00:02]} 44. gxh4 {[%clk 0:01:32]}  gxh4 {[%clk 0:00:02]} 45. a5 {[%clk 0:01:33]}  Rf4+ {[%clk 0:00:02]} 46. Kc3 {[%clk 0:01:12]}  Rf3+ {[%clk 0:00:02]} 47. Kd4 {[%clk 0:01:12]}  Ra3 {[%clk 0:00:02]} 48. Rb6+ {[%clk 0:01:13]}  Kg5 {[%clk 0:00:02]} 49. a6 {[%clk 0:01:14]}  h3 {[%clk 0:00:02]} 50. Rb7 {[%clk 0:01:10]} 1-0


[Site "https://www.chess.com"]

[Event "Titled Tuesday Blitz March 01 Early 2022"]
[White "Shafigullina, Zarina"]
[Black "Alavkin, Arseny"]
[WhiteFideId "24174220"]
[BlackFideId "4120612"]
[WhiteElo "2062"]
[BlackElo "2391"]
[Result "0-1"]
[Round "01"]
[TimeControl "180+1"]
[Date "2022.03.01"]
[WhiteClock "0:02:01"]
[BlackClock "0:02:35"]

1. d4 {[%clk 0:03:00]}  Nf6 {[%clk 0:02:58]} 2. Nf3 {[%clk 0:03:00]}  g6 {[%clk 0:02:58]} 3. g3 {[%clk 0:03:00]}  Bg7 {[%clk 0:02:59]} 4. Bg2 {[%clk 0:03:01]}  O-O {[%clk 0:02:59]} 5. O-O {[%clk 0:03:01]}  d6 {[%clk 0:02:59]} 6. c4 {[%clk 0:03:02]}  Nc6 {[%clk 0:02:57]} 7. Nc3 {[%clk 0:03:02]}  Bf5 {[%clk 0:02:56]} 8. d5 {[%clk 0:03:02]}  Na5 {[%clk 0:02:55]} 9. Nd4 {[%clk 0:03:02]}  Bd7 {[%clk 0:02:55]} 10. b3 {[%clk 0:02:56]}  c5 {[%clk 0:02:54]} 11. Nc2 {[%clk 0:02:56]}  a6 {[%clk 0:02:53]} 12. Qd3 {[%clk 0:02:33]}  Rb8 {[%clk 0:02:53]} 13. h3 {[%clk 0:02:33]}  b5 {[%clk 0:02:53]} 14. e4 {[%clk 0:02:33]}  e6 {[%clk 0:02:42]} 15. Bg5 {[%clk 0:02:29]}  h6 {[%clk 0:02:41]} 16. Bd2 {[%clk 0:02:28]}  exd5 {[%clk 0:02:41]} 17. cxd5 {[%clk 0:02:21]}  c4 {[%clk 0:02:38]} 18. bxc4 {[%clk 0:02:17]}  Nxc4 {[%clk 0:02:39]} 19. Rab1 {[%clk 0:02:11]}  Rc8 {[%clk 0:02:38]} 20. Bf4 {[%clk 0:02:08]}  Nh5 {[%clk 0:02:37]} 21. Nd4 {[%clk 0:02:01]}  Nxf4 {[%clk 0:02:36]} 22. g4 {[%clk 0:02:01]}  Nxd3 {[%clk 0:02:35]} 0-1


[Site "https://www.chess.com"]

[Event "Titled Tuesday Blitz March 01 Early 2022"]
[White "Shtyka, Sergey"]
[Black "Ter-Sahakyan, Samvel"]
[WhiteFideId "4138465"]
[BlackFideId "13302531"]
[WhiteElo "2014"]
[BlackElo "2592"]
[Result "0-1"]
[Round "01"]
[TimeControl "180+1"]
[Date "2022.03.01"]
[WhiteClock "0:00:11"]
[BlackClock "0:00:41"]

1. e4 {[%clk 0:02:57]}  c6 {[%clk 0:02:59]} 2. Nf3 {[%clk 0:02:57]}  d5 {[%clk 0:03:00]} 3. Nc3 {[%clk 0:02:57]}  dxe4 {[%clk 0:02:57]} 4. Nxe4 {[%clk 0:02:58]}  Nf6 {[%clk 0:02:58]} 5. Nxf6+ {[%clk 0:02:57]}  exf6 {[%clk 0:02:58]} 6. g3 {[%clk 0:02:58]}  Bd6 {[%clk 0:02:54]} 7. Bg2 {[%clk 0:02:58]}  Qe7+ {[%clk 0:02:52]} 8. Qe2 {[%clk 0:02:58]}  Qxe2+ {[%clk 0:02:51]} 9. Kxe2 {[%clk 0:02:57]}  O-O {[%clk 0:02:52]} 10. d4 {[%clk 0:02:56]}  Bf5 {[%clk 0:02:48]} 11. c3 {[%clk 0:02:51]}  Nd7 {[%clk 0:02:42]} 12. Be3 {[%clk 0:02:50]}  a5 {[%clk 0:02:38]} 13. b3 {[%clk 0:02:42]}  a4 {[%clk 0:02:34]} 14. Rhd1 {[%clk 0:02:28]}  Bc2 {[%clk 0:02:30]} 15. Rdc1 {[%clk 0:02:12]}  axb3 {[%clk 0:02:30]} 16. axb3 {[%clk 0:02:12]}  Bxb3 {[%clk 0:02:30]} 17. Nd2 {[%clk 0:02:08]}  Be6 {[%clk 0:02:25]} 18. c4 {[%clk 0:02:00]}  Rfc8 {[%clk 0:01:59]} 19. Rcb1 {[%clk 0:01:43]}  Rxa1 {[%clk 0:01:55]} 20. Rxa1 {[%clk 0:01:43]}  Bb4 {[%clk 0:01:55]} 21. d5 {[%clk 0:01:35]}  Bg4+ {[%clk 0:01:54]} 22. f3 {[%clk 0:01:27]}  Bf5 {[%clk 0:01:51]} 23. g4 {[%clk 0:01:26]}  Bc2 {[%clk 0:01:33]} 24. Ra2 {[%clk 0:01:21]}  Bxd2 {[%clk 0:01:32]} 25. Kxd2 {[%clk 0:01:08]}  Bb3 {[%clk 0:01:32]} 26. Ra7 {[%clk 0:01:07]}  Ne5 {[%clk 0:01:25]} 27. Rxb7 {[%clk 0:00:21]}  Nxc4+ {[%clk 0:01:25]} 28. Kd3 {[%clk 0:00:22]}  Nxe3 {[%clk 0:01:25]} 29. Kxe3 {[%clk 0:00:22]}  Bxd5 {[%clk 0:01:25]} 30. Kf2 {[%clk 0:00:17]}  g5 {[%clk 0:01:14]} 31. f4 {[%clk 0:00:16]}  Bxg2 {[%clk 0:01:14]} 32. Kxg2 {[%clk 0:00:16]}  c5 {[%clk 0:01:14]} 33. Rb3 {[%clk 0:00:14]}  c4 {[%clk 0:01:05]} 34. Rc3 {[%clk 0:00:14]}  Kf8 {[%clk 0:01:05]} 35. Kf3 {[%clk 0:00:14]}  Ke7 {[%clk 0:01:03]} 36. Ke4 {[%clk 0:00:15]}  Kd6 {[%clk 0:00:52]} 37. f5 {[%clk 0:00:14]}  Kc5 {[%clk 0:00:51]} 38. Rc1 {[%clk 0:00:14]}  Re8+ {[%clk 0:00:50]} 39. Kf3 {[%clk 0:00:14]}  Re7 {[%clk 0:00:46]} 40. h3 {[%clk 0:00:10]}  Kd4 {[%clk 0:00:44]} 41. Rd1+ {[%clk 0:00:10]}  Kc3 {[%clk 0:00:44]} 42. Rc1+ {[%clk 0:00:10]}  Kb3 {[%clk 0:00:44]} 43. Rb1+ {[%clk 0:00:10]}  Kc2 {[%clk 0:00:44]} 44. Rb6 {[%clk 0:00:11]}  c3 {[%clk 0:00:43]} 45. Rxf6 {[%clk 0:00:11]}  Rc7 {[%clk 0:00:41]} 0-1


[Site "https://www.chess.com"]

[Event "Titled Tuesday Blitz March 01 Early 2022"]
[White "Shuvalova, Polina"]
[Black "Polster, Christian"]
[WhiteFideId "24171760"]
[BlackFideId "12965081"]
[WhiteElo "2355"]
[BlackElo "2302"]
[Result "1-0"]
[Round "01"]
[TimeControl "180+1"]
[Date "2022.03.01"]
[WhiteClock "0:00:37"]
[BlackClock "0:00:15"]

1. d4 {[%clk 0:02:50]}  d5 {[%clk 0:02:59]} 2. Nf3 {[%clk 0:02:48]}  Nf6 {[%clk 0:02:54]} 3. Bf4 {[%clk 0:02:42]}  c5 {[%clk 0:02:51]} 4. e3 {[%clk 0:02:39]}  Nc6 {[%clk 0:02:50]} 5. Nbd2 {[%clk 0:02:37]}  Qb6 {[%clk 0:02:45]} 6. dxc5 {[%clk 0:02:34]}  Qxb2 {[%clk 0:02:05]} 7. Rb1 {[%clk 0:02:26]}  Qc3 {[%clk 0:01:34]} 8. Bb5 {[%clk 0:02:23]}  e6 {[%clk 0:01:19]} 9. Be5 {[%clk 0:02:20]}  Qxc5 {[%clk 0:01:15]} 10. O-O {[%clk 0:02:17]}  Be7 {[%clk 0:01:08]} 11. c4 {[%clk 0:02:14]}  dxc4 {[%clk 0:00:59]} 12. Bxf6 {[%clk 0:02:11]}  gxf6 {[%clk 0:00:47]} 13. Nxc4 {[%clk 0:02:06]}  O-O {[%clk 0:00:44]} 14. a4 {[%clk 0:01:38]}  Rd8 {[%clk 0:00:40]} 15. Qe2 {[%clk 0:01:34]}  Nb4 {[%clk 0:00:28]} 16. Ncd2 {[%clk 0:01:19]}  a6 {[%clk 0:00:22]} 17. Rfc1 {[%clk 0:01:16]}  Qh5 {[%clk 0:00:21]} 18. Bc4 {[%clk 0:01:15]}  Bd7 {[%clk 0:00:21]} 19. Ne4 {[%clk 0:01:11]}  f5 {[%clk 0:00:19]} 20. Ng3 {[%clk 0:01:08]}  Qh6 {[%clk 0:00:19]} 21. Bb3 {[%clk 0:01:05]}  Bc6 {[%clk 0:00:19]} 22. Ne5 {[%clk 0:01:05]}  Bd5 {[%clk 0:00:18]} 23. Rc7 {[%clk 0:00:55]}  Bd6 {[%clk 0:00:18]} 24. Nxf7 {[%clk 0:00:53]}  Qg7 {[%clk 0:00:16]} 25. Nxd8 {[%clk 0:00:50]}  Qxc7 {[%clk 0:00:16]} 26. Nxe6 {[%clk 0:00:49]}  Qf7 {[%clk 0:00:16]} 27. Ng5 {[%clk 0:00:43]}  Qg6 {[%clk 0:00:15]} 28. Bxd5+ {[%clk 0:00:42]}  Nxd5 {[%clk 0:00:16]} 29. Qc4 {[%clk 0:00:38]}  Qxg5 {[%clk 0:00:15]} 30. Qxd5+ {[%clk 0:00:37]}  Kh8 {[%clk 0:00:15]} 31. Qxd6 {[%clk 0:00:37]} 1-0


[Site "https://www.chess.com"]